Cogmind - Beta 15 @@@ ROGUE MODE // 2025.05.26 @ 03:10:58 Player: Geo Result: Destroyed by S-10 Pest with Light Assault Rifle Performance ------------- Evolutions (0) 0 Regions Visited (2) 400 Robots Destroyed (29) 145 Value Destroyed (686) 686 Prototype IDs (0) 0 Alien Tech Used (0) 0 Bonus (0) 0 TOTAL SCORE: 1231 Bonus ------- None Cogmind --------- Core Integrity 0/250 Matter 300/300 Energy 49/100 System Corruption 0% Temperature Cool (0) Movement Treading (240) Ox1 Location -10/Subcaves Parts ------- > --- POWER (1) -------- (None) > --- PROPULSION (2) --- Light Treads Subdweller Monowheel > --- UTILITY (2) ------ Large Storage Unit Terrain Scanner > --- WEAPON (2) ------- Particle Cannon > --- INVENTORY (15) --- Ion Engine Wheel Compact Wheel Improved Heat Sink Large Matter Pod (150) Sensor Array Signal Interpreter EM Pulse Gun Particle Cannon Particle Cannon Particle Cannon Datajack Peak State ------------ > --- POWER ------------ Ion Engine > --- PROPULSION ------- Aluminum Leg Aluminum Leg > --- UTILITY ---------- Improved Heat Sink Large Storage Unit > --- WEAPON ----------- Particle Cannon Grenade Launcher > --- INVENTORY -------- Ion Engine Light Treads Light Treads Wheel Compact Wheel Large Matter Pod Sensor Array Signal Interpreter EM Pulse Gun Particle Cannon Particle Cannon Particle Cannon Datajack [Rating: 11] Favorites ----------- Power Ion Engine Engine Ion Engine Propulsion Aluminum Leg Treads Light Treads Leg Aluminum Leg Wheel Subdweller Monowheel Utility Large Storage Unit Device Terrain Scanner Storage Large Storage Unit Protection Light Armor Plating Weapon Particle Cannon Energy Gun EM Pulse Gun Energy Cannon Particle Cannon Launcher Grenade Launcher Build | -11 -10 -10 ------- Run | Yrd Mat Sub Slots Evolved . | . . . Power . | . . . Propulsion . | . . . Utility . | . . . Weapon . | . . . Parts Attached 12 | . 7 5 Power 1 | . 1 . Engine 1 | . 1 . Core . | . . . Reactor . | . . . Propulsion 3 | . . 3 Treads 2 | . . 2 Leg . | . . . Wheel 1 | . . 1 Hover . | . . . Flight . | . . . Utility 4 | . 3 1 Device 2 | . 1 1 Storage 1 | . 1 . Processor . | . . . Hackware . | . . . Protection 1 | . 1 . Artifact . | . . . Weapon 4 | . 3 1 Energy Gun 1 | . . 1 Energy Cannon 2 | . 2 . Ballistic Gun . | . . . Ballistic Cannon . | . . . Launcher 1 | . 1 . Special Weapon . | . . . Impact Weapon . | . . . Slashing Weapon . | . . . Piercing Weapon . | . . . Special Melee Weapon . | . . . Unidentified Prototypes . | . . . Parts Lost 5 | . 2 3 Power 2 | . 1 1 Propulsion 1 | . . 1 Utility . | . . . Weapon 2 | . 1 1 Highest Loss Streak 2 | . 1 2 To Critical Strikes . | . . . Average Backups 10 | 6 10 12 Power 1 | 1 1 1 Propulsion 3 | 4 4 2 Utility 2 | . 1 4 Weapon 3 | 1 2 4 Tool/Special . | . . . Unused Backups 22 | 6 4 12 Power 3 | 1 1 1 Propulsion 6 | 2 . 4 Utility 5 | 1 1 3 Weapon 7 | 2 2 3 Tool/Special 1 | . . 1 Average Slot Usage (%) 91 | . 95 83 Engine 13 | . 13 12 Treads 9 | . . 26 Leg 18 | . 28 1 Device 7 | . 3 14 Storage 14 | . 14 14 Protection 5 | . 8 . Energy Gun 8 | . 13 . Energy Cannon 9 | . 7 14 Launcher 2 | . 3 . Peak Build Rating 11 | 6 11 10 Average Rating 8 | 6 8 7 On Entrance 7 | 6 6 10 Naked Turns . | . . . Heaviest Build 36 | 14 36 30 Greatest Support 40 | 20 20 40 Greatest Overweight (x) 1 | . 1 1 Average Overweight (x) . | . . . Largest Inventory Capacity 15 | 8 15 15 Average Capacity 14 | 8 14 15 Most Carried 14 | 6 14 14 Average Carried 10 | 6 10 12 Final Capacity 15 | 8 15 15 Final Carried 14 | 6 14 12 Class Distribution -------------------- 100% | Mutant Dominant Class ---------------- Mutant | -10/Materials Mutant | -10/Subcaves Resources | -11 -10 -10 ----------- Run | Yrd Mat Sub Matter Collected 520 | 200 280 40 Remotely . | . . . Salvage Created 810 | . 657 153 Parts 53 | . 45 8 Haulers Intercepted . | . . . Recyclers Shooed 2 | . 2 . Parts Field Recycled . | . . . Retrieved Matter . | . . . Parts Self-Destructed 4 | . . 4 Prevented . | . . . Kills | -11 -10 -10 ------- Run | Yrd Mat Sub Combat Hostiles Destroyed 18 | . 13 5 Cannons 13 | . 8 5 AOE 5 | . 5 . Classes Destroyed 8 | . 7 1 Worker 1 | . 1 . Builder 5 | . 5 . Tunneler 1 | . 1 . Recycler 2 | . 2 . Watcher 2 | . 2 . Swarmer 5 | . 3 2 Grunt 10 | . 10 . Subdweller 3 | . . 3 Best Kill Streak 5 | . 5 2 Combat Bots Only 3 | . 3 2 Max Kills in Single Turn 2 | . 2 1 Gunslinging . | . . . Exploded 2 | . 2 . Melee . | . . . Uniques/NPCs Destroyed . | . . . Combat | -11 -10 -10 -------- Run | Yrd Mat Sub Hostile Shots Fired 108 | . 55 53 Missed 31 | . 15 16 Hits 77 | . 40 37 Projectile 77 | . 40 37 Damage Taken 1137 | . 517 620 Core 256 | . 80 176 Absorbed by Shields . | . . . Core Remaining (%) 100 | 100 . . Volleys Fired 95 | . 69 26 Largest 2 | . 2 2 Hottest 136 | . 136 128 Shots Fired 98 | . 71 27 Gun 3 | . 2 1 Cannon 88 | . 62 26 Launcher 7 | . 7 . Special . | . . . Kinetic . | . . . Thermal 90 | . 63 27 Explosive 7 | . 7 . Electromagnetic 1 | . 1 . Robot Hit Streak 11 | . 7 11 Robot Miss Streak 2 | . 2 2 Penetration Max . | . . . Secondary Targets . | . . . Shots Hit Robots 64 | . 42 22 Core Hits 37 | . 28 9 Critical Kills 1 | . 1 . Critical Parts Destroyed . | . . . Critical Strikes 1 | . 1 . Meltdown 1 | . 1 . Melee Attacks . | . . . Impact . | . . . Slashing . | . . . Piercing . | . . . Sneak Attacks . | . . . Combat Hostiles . | . . . Follow-up Attacks . | . . . Damage Inflicted 2059 | . 1599 460 Guns 19 | . . 19 Cannons 1318 | . 887 431 Explosions 704 | . 704 . Melee . | . . . Ramming 18 | . 8 10 Kinetic . | . . . Thermal 1337 | . 887 450 Explosive 704 | . 704 . Electromagnetic . | . . . Impact . | . . . Slashing . | . . . Piercing . | . . . Highest Corruption . | . . . Average Corruption . | . . . Corruption Purged . | . . . Corruption Blocked . | . . . Overload Shots . | . . . Overflow Damage 33 | . 32 1 Projectiles 16 | . 15 1 Explosions 17 | . 17 . Melee . | . . . Knockbacks 1 | . . 1 Impact 1 | . . 1 Kinetic . | . . . Secondary . | . . . Self-Inflicted Damage 75 | . 75 . Shots 3 | . 3 . Rammed 5 | . . 5 Targets Rammed 9 | . 4 5 Kicked 4 | . 4 . Crushed . | . . . Highest Temperature 283 | . 283 . Average Temperature 76 | . 76 . Received Heat Transfer 246 | . 192 54 Effects 1 | . 1 . Interference 1 | . 1 . Siege Activations . | . . . Martial Activations . | . . . Shielding Activations . | . . . Robots Disrupted . | . . . Combat Hostiles . | . . . Robots Corrupted . | . . . Combat Hostiles . | . . . Parts Fried . | . . . Impact Corruptions . | . . . Robots Melted 1 | . 1 . Combat Hostiles . | . . . Parts Melted 5 | . 3 2 Heat Transferred 2393 | . 1591 802 Parts Sabotaged . | . . . Parts Stolen . | . . . Parts Stripped . | . . . Power Chain Reactions . | . . . Alert | -11 -10 -10 ------- Run | Yrd Mat Sub Maximum Alert Level 1 | . 1 . Low Security (%) 86 | 100 86 . Level 1 13 | . 13 . Level 2 . | . . . Level 3 . | . . . Level 4 . | . . . Level 5 . | . . . High Security . | . . . Max Security . | . . . Peak Influence 232 | . 232 . Initial . | . . . Average 80 | . 82 . Influence Increases 574 | . 504 70 Destroy 0b10 Robot/C 300 | . 260 40 Destroy 0b10 Robot/NC 55 | . 55 . Destroy Leader 54 | . 54 . Disable Machine 90 | . 90 . Destroy Structure 45 | . 45 . Lose Combat Pursuer 30 | . . 30 Influence Decreases 520 | . 314 206 Entered New Map 92 | . . 92 Time Decay 398 | . 294 104 Lost Part 30 | . 20 10 Squads Dispatched 3 | . 3 . Investigation 2 | . 2 . Extermination . | . . . Reinforcement 1 | . 1 . Assault . | . . . Garrison . | . . . Intercept . | . . . Searches Triggered . | . . . Construction Impeded . | . . . Haulers Reinforced . | . . . Active Scanning Responses . | . . . Cargo Convoy Interrupts . | . . . Stealth | -11 -10 -10 --------- Run | Yrd Mat Sub Distress Signals 1 | . 1 . Communications Jammed . | . . . Distress Signals . | . . . Times Spotted 30 | . 21 9 Peak Tracking Total 6 | . 4 6 Tactical Retreats 2 | . . 2 Traps | -11 -10 -10 ------- Run | Yrd Mat Sub Traps Triggered 3 | . 2 1 Indirectly . | . . . Trap Hack Attempts . | . . . Triggered . | . . . Disarmed . | . . . Reprogrammed . | . . . Reused . | . . . Traps Extracted . | . . . Installed . | . . . Triggered . | . . . Machines | -11 -10 -10 ---------- Run | Yrd Mat Sub Machines Disabled 6 | . 6 . Max in Single Turn 2 | . 2 . Machines Repaired . | . . . Machines Dismantled . | . . . Machines Sabotaged . | . . . Overloaded Fab Kills . | . . . Hacking | -11 -10 -10 --------- Run | Yrd Mat Sub Machines Accessed 1 | . 1 . Terminals 1 | . 1 . Fabricators . | . . . Repair Stations . | . . . Recycling Units . | . . . Scanalyzers . | . . . Garrison Access . | . . . Total Hacks 2 | . 2 . Successful . | . . . Failed 2 | . 2 . Catastrophic 2 | . 2 . Database Lockouts . | . . . Manual 2 | . 2 . Terminals 2 | . 2 . Fabricators . | . . . Repair Stations . | . . . Recycling Units . | . . . Scanalyzers . | . . . Garrison Access . | . . . Terminal Hacks . | . . . Fabricator Hacks . | . . . Repair Station Hacks . | . . . Recycling Unit Hacks . | . . . Scanalyzer . | . . . Garrison Access Hacks . | . . . Unauthorized Hacks . | . . . Terminals . | . . . Fabricators . | . . . Repair Stations . | . . . Recycling Units . | . . . Scanalyzers . | . . . Garrison Access . | . . . Data Cores Recovered . | . . . Used . | . . . Hacking Detections 1 | . 1 . Full Trace Events . | . . . Feedback Events . | . . . Feedback Blocked . | . . . Robot Schematics Acquired . | . . . Robots Built . | . . . Authchips . | . . . Time . | . . . Total Robot Build Rating . | . . . Part Schematics Acquired . | . . . Parts Built . | . . . Authchips . | . . . Time . | . . . Total Part Build Rating . | . . . Parts Repaired . | . . . Time . | . . . Parts Recycled . | . . . Recycled Matter . | . . . Retrieved Matter . | . . . Retrieved Components . | . . . Parts Scanalyzed . | . . . Part Schematics Acquired . | . . . Parts Damaged . | . . . Bothacking | -11 -10 -10 ------------ Run | Yrd Mat Sub Used RIF Installer . | . . . Robots Hacked . | . . . Non-combat . | . . . Combat . | . . . Robot Hacks Applied . | . . . Relay Couplers Released . | . . . Fabnet Peak Effective % . | . . . Robots Rewired . | . . . Allies Hacked . | . . . Hacks Repelled . | . . . Allies | -11 -10 -10 -------- Run | Yrd Mat Sub Total Allies . | . . . Largest Group . | . . . Highest-Rated Group . | . . . Highest-Rated Ally . | . . . Total Orders . | . . . Ally Attacks . | . . . Total Damage . | . . . Kills . | . . . Allies Corrupted . | . . . Allies Melted . | . . . Intel | -11 -10 -10 ------- Run | Yrd Mat Sub Active Infowar (turns) 1125 | . . 1125 Terrain 1125 | . . 1125 Robot Analysis Total . | . . . Derelict Logs Recovered 1 | . . 1 Drone Launches . | . . . Drone Recoveries . | . . . Exploration | -11 -10 -10 ------------- Run | Yrd Mat Sub Turns Passed 3192 | 44 2019 1129 Spaces Moved 1010 | 37 654 319 Core . | . . . Treads 310 | . . 310 Legs 700 | 37 654 9 Wheels . | . . . Hover . | . . . Flight . | . . . Fastest Speed 120 | 120 120 160 Average Speed 167 | 120 173 161 Slowest Speed 240 | 120 190 240 Overloaded Moves . | . . . Propulsion Burnouts . | . . . Robots Hopped . | . . . Potential Cave-ins . | . . . Cave-ins Triggered . | . . . Exploration Rate (%) 38 | 3 81 32 Regions Visited 2 Branch Regions 1 Pre-discovered Areas 1 | . . 1 Known Exits Taken . | . . . Unknown Exits Taken 2 | 1 1 . Scrap Searched . | . . . Spaces Dug . | . . . Terrain Destroyed 48 | . 48 . Melee . | . . . Projectile . | . . . AOE 48 | . 48 . Terrain Rammed . | . . . Walls Destroyed . | . . . Machines Disabled . | . . . Actions | -11 -10 -10 --------- Run | Yrd Mat Sub Total 2402 | 36 1462 904 Wait 1263 | . 717 546 Move 1008 | 36 653 319 Hop . | . . . Pick Up 9 | . 8 1 Fast Attach 6 | . 5 1 Attach 3 | . . 3 Detach . | . . . Swap 3 | . 2 1 Drop 6 | . 4 2 Fire 95 | . 69 26 Melee . | . . . Ram . | . . . Kick 4 | . 4 . Crush 5 | . . 5 Escape Stasis . | . . . Rewire . | . . . Trap . | . . . Miscellaneous . | . . . Route ------- -11/Scrapyard -10/Materials (discovered 5 exits: [*Mat x2] / [*Min x2] / [*Sub]) -10/Subcaves (discovered 1 exit: [*Mat]) History --------- Turn | Location | Event 1 | -11/Scrapyard | Discovered new exit (range 3) 45 | -11/Scrapyard | Entered Materials 45 | -10/Materials | Discovered new exit (range 14) 143 | -10/Materials | Discovered new exit (range 11) 313 | -10/Materials | Build established: Mutant 1342 | -10/Materials | Discovered new exit (range 11) 1517 | -10/Materials | Discovered new exit (range 5) 1618 | -10/Materials | Discovered new exit (range 7) 2064 | -10/Materials | Entered Subcaves 3072 | -10/Subcaves | Core integrity fell below 50% 3088 | -10/Subcaves | Core integrity fell below 20% 3140 | -10/Subcaves | Discovered new exit (range 14) 3162 | -10/Subcaves | Learned location of Zion (-7) 3193 | -10/Subcaves | Destroyed by S-10 Pest with Light Assault Rifle Last Messages --------------- 03093_ Triggered Shrapnel Trap. 03093_ An expanding cloud of shrapnel blasts out in all directions. 03094_ Slammed into T1-T9D(R). 03095_ Sub. Laser destroyed. 03101_ Subatomizers dissect the Sub. Optics. 03109_ T1-T9D(R) affixes Scrap Shield Fragment to Scrap Shield. 03110_ T1-T9D(R) destroyed. 03114_ Subatomizers dissect the Sub. Optics. 03118_ Acquired Sub. Monowheel. 03140_ EXIT=FOUND 03162_ Acquired derelict log, extracted data. World map updated: -7/Zion. 03164_ PO-O0O(u) tweaks Twisted Machinery. 03170_ S-10 Pest springs to life. 03179_ Lgt. Treads destroyed. 03185_ S-10 Pest destroyed. 03187_ Flight Unit melted. 03187_ S-10 Pest destroyed. 03188_ Acquired 10 matter. 03191_ Destroyed Flight Unit. Map ----- +----------------------------------------------------+ | ?????????????????????????????????????????????????? | | ?????????????????????????????????????????????????? | | ?????????????????????????????????????????????????? | | ?????????????????????????????????????????????????? | | ?????????????????????????? ??????????????????????? | | ????????????????????????????? ???????????????????? | | ?????????????????????????????"#??????????#???????? | | ?????????????????###????????? "##"??#??????????#?? | | ????????????????#""""????????? ""????????#??????? | | ????????????????#" "????????? """???#???#???????? | | ????????????????#" ????????# "???????????###### | | ????????????????? ?? ????## #??????####### | | ?????????????????? ??????## "######## | | ????????????? ????? ????## " # ## | | ?????????????????#?# ??### "# | | ???????????# ??##?# ??# # "## | | ??????????## ## # ?## " ## ## ### | | ??????????# ## " ### #### # | | ??????????# " "## #?## | | ??????????# # #?# | | ??????????# ## ## ## ## ### | | ???????????? ?? ?# ## ### ###### ##?# | | ????????????? ? ? ???## ## #?#####????## ???? | | ??????????? ???? ?????# ## < #???????#???##???? | | ???????????????????? ??#s## #????????????????? | | ???????????????????????# @%s ##????????????????? | | ??????????????????????# #####?????????#???#???? | | ??????????????????????######????#????????????????? | | ????????????????????#???#??????????????????#??#??? | | ????????????????????????????#????????????????????? | | ??????????????????????????????????????#??????????? | | ?????????????#?????????????????????????????????#?? | | ?????????????????????????????????????????????????? | | ?????????????????????????????????????????????????? | | ?????????????????????????#???????????????????????? | | ?????????????????????????????????????????????????? | | ?????????????????????????????????????????????????? | | ?????????????????????????????????????????????????? | | ?????????????????????????????????????????????????? | | ?????????????????????????????????????????????????? | | ?????????????????????????????????????????????????? | | ?????????????????????????????????????????????????? | | | | | | | | | | | | | | | | | +----------------------------------------------------+ Best States ------------- Heat Dissipation 39 Energy Generation 10 Energy Capacity 250 Matter Stores 300 Matter Capacity 300 Sight Range 16 Terrain Scan Range 14 Terrain Scan Density 10 Armor Coverage 150 Evasion (%) 55 Recoil Reduction 2 Item Schematics ----------------- None Robot Schematics ------------------ None Fabricated ------------ Nothing Repaired ---------- Nothing Alien Tech Used ----------------- None Achievements -------------- None Challenges ------------ None Game ------ Seed AerolevFrostPlatform Manual? 0 Play Time 00:12:28 Cumulative 487.2 hours Start 2025.05.26 @ 02:52:11 End 2025.05.26 @ 03:10:58 Sessions 1 Manual Loads 0 Difficulty Rogue Special Mode None Game No. 538 Rogue 538 Adventurer 0 Explorer 0 Win Type - Total 14 Types 9/0/4/1/0/0/0/0/0/0 Lore% 69 Gallery% 79 Achievement% 82 Wizard Run 0 Options --------- Layout 0 ASCII 0 Keyboard 0 Movement Numpad Keybinds 0 Fullscreen 1 Font 18/SmallcapsGlow Map View 76x50 Zoom Use 0% Tactical HUD 1 Map Filters NONE Filters NONE Steam 1 RUN: d3a11d73-501b-4079-80b7-822d59a76659